[Event "Titled Tuesday Blitz May 25 2021"]
[White "Romanchuk, Viktor"]
[Black "Onyshchuk, Volodymyr"]
[WhiteFideId "14109271"]
[BlackFideId "14114038"]
[WhiteElo "2242"]
[BlackElo "2605"]
[Result "1/2-1/2"]
[Round "02"]
[TimeControl "180+1"]
[Date "2021.05.25"]
[WhiteClock "0:00:22"]
[BlackClock "0:00:03"]

1. d4 {[%clk 0:03:00]}  d6 {[%clk 0:02:56]} 2. c4 {[%clk 0:03:00]}  e5 {[%clk 0:02:56]} 3. Nc3 {[%clk 0:03:00]}  exd4 {[%clk 0:02:55]} 4. Qxd4 {[%clk 0:03:01]}  Nc6 {[%clk 0:02:55]} 5. Qd2 {[%clk 0:03:01]}  Nf6 {[%clk 0:02:53]} 6. g3 {[%clk 0:02:56]}  Be6 {[%clk 0:02:53]} 7. Nd5 {[%clk 0:02:54]}  Ne5 {[%clk 0:02:44]} 8. b3 {[%clk 0:02:50]}  c6 {[%clk 0:02:32]} 9. Nxf6+ {[%clk 0:02:47]}  Qxf6 {[%clk 0:02:32]} 10. Bb2 {[%clk 0:02:47]}  Qg6 {[%clk 0:02:13]} 11. Bg2 {[%clk 0:02:43]}  h5 {[%clk 0:02:09]} 12. Nf3 {[%clk 0:02:38]}  Nxf3+ {[%clk 0:02:07]} 13. Bxf3 {[%clk 0:02:36]}  Be7 {[%clk 0:02:03]} 14. h4 {[%clk 0:02:28]}  O-O-O {[%clk 0:02:00]} 15. O-O-O {[%clk 0:02:24]}  Bf6 {[%clk 0:01:51]} 16. Bxf6 {[%clk 0:02:20]}  Qxf6 {[%clk 0:01:51]} 17. Qb2 {[%clk 0:02:20]}  Qe5 {[%clk 0:01:42]} 18. Qxe5 {[%clk 0:02:07]}  dxe5 {[%clk 0:01:41]} 19. Rxd8+ {[%clk 0:02:08]}  Kxd8 {[%clk 0:01:42]} 20. Rd1+ {[%clk 0:02:08]}  Ke7 {[%clk 0:01:41]} 21. c5 {[%clk 0:01:52]}  f6 {[%clk 0:01:40]} 22. Kb2 {[%clk 0:01:51]}  g5 {[%clk 0:01:40]} 23. Rh1 {[%clk 0:01:48]}  g4 {[%clk 0:01:39]} 24. Bg2 {[%clk 0:01:43]}  Rd8 {[%clk 0:01:38]} 25. Kc2 {[%clk 0:01:41]}  Bf5+ {[%clk 0:01:16]} 26. e4 {[%clk 0:01:40]}  Be6 {[%clk 0:01:14]} 27. Rd1 {[%clk 0:01:40]}  Rf8 {[%clk 0:01:12]} 28. Kc3 {[%clk 0:01:35]}  a5 {[%clk 0:01:07]} 29. a3 {[%clk 0:01:33]}  Rb8 {[%clk 0:01:04]} 30. Bf1 {[%clk 0:01:31]}  Rf8 {[%clk 0:00:56]} 31. Rd2 {[%clk 0:01:20]}  f5 {[%clk 0:00:55]} 32. exf5 {[%clk 0:01:19]}  Rxf5 {[%clk 0:00:55]} 33. Bg2 {[%clk 0:01:16]}  Rf8 {[%clk 0:00:45]} 34. Re2 {[%clk 0:01:13]}  Rf5 {[%clk 0:00:43]} 35. Be4 {[%clk 0:01:11]}  Rf6 {[%clk 0:00:42]} 36. Bg2 {[%clk 0:01:10]}  Rf5 {[%clk 0:00:37]} 37. Be4 {[%clk 0:01:10]}  Rf8 {[%clk 0:00:37]} 38. Bg2 {[%clk 0:01:09]}  Kf6 {[%clk 0:00:37]} 39. Rd2 {[%clk 0:01:06]}  Rb8 {[%clk 0:00:35]} 40. Rd6 {[%clk 0:01:01]}  Ke7 {[%clk 0:00:34]} 41. Be4 {[%clk 0:00:58]}  Rf8 {[%clk 0:00:32]} 42. Rd2 {[%clk 0:00:56]}  Bf5 {[%clk 0:00:30]} 43. Bg2 {[%clk 0:00:53]}  Bg6 {[%clk 0:00:29]} 44. Re2 {[%clk 0:00:50]}  Kf6 {[%clk 0:00:26]} 45. Rd2 {[%clk 0:00:50]}  Bf5 {[%clk 0:00:25]} 46. Rd6+ {[%clk 0:00:49]}  Be6 {[%clk 0:00:25]} 47. Rd2 {[%clk 0:00:50]}  Rb8 {[%clk 0:00:23]} 48. Rd6 {[%clk 0:00:49]}  Ke7 {[%clk 0:00:22]} 49. Be4 {[%clk 0:00:47]}  b6 {[%clk 0:00:20]} 50. Rxc6 {[%clk 0:00:44]}  bxc5 {[%clk 0:00:20]} 51. Rxc5 {[%clk 0:00:38]}  Rxb3+ {[%clk 0:00:20]} 52. Kd2 {[%clk 0:00:38]}  Rxa3 {[%clk 0:00:18]} 53. Rxe5 {[%clk 0:00:38]}  Kf6 {[%clk 0:00:14]} 54. Rxh5 {[%clk 0:00:37]}  Ra2+ {[%clk 0:00:12]} 55. Ke3 {[%clk 0:00:37]}  a4 {[%clk 0:00:13]} 56. Ra5 {[%clk 0:00:34]}  a3 {[%clk 0:00:13]} 57. h5 {[%clk 0:00:34]}  Ra1 {[%clk 0:00:12]} 58. h6 {[%clk 0:00:32]}  a2 {[%clk 0:00:12]} 59. Kf4 {[%clk 0:00:32]}  Re1 {[%clk 0:00:10]} 60. h7 {[%clk 0:00:29]}  Kg7 {[%clk 0:00:01]} 61. Ra7+ {[%clk 0:00:28]}  Bf7 {[%clk 0:00:01]} 62. Rxf7+ {[%clk 0:00:23]}  Kxf7 {[%clk 0:00:02]} 63. h8=Q {[%clk 0:00:23]}  a1=Q {[%clk 0:00:02]} 64. Qxa1 {[%clk 0:00:23]}  Rxa1 {[%clk 0:00:01]} 65. Kxg4 {[%clk 0:00:24]}  Ra4 {[%clk 0:00:02]} 66. f3 {[%clk 0:00:23]}  Kf6 {[%clk 0:00:02]} 67. Kf4 {[%clk 0:00:22]}  Ra5 {[%clk 0:00:02]} 68. Kg4 {[%clk 0:00:22]}  Rb5 {[%clk 0:00:03]} 69. Kf4 {[%clk 0:00:22]}  Rc5 {[%clk 0:00:03]} 70. Kg4 {[%clk 0:00:22]}  Rb5 {[%clk 0:00:03]} 1/2-1/2


[Site "https://www.chess.com"]

[Event "Titled Tuesday Blitz May 25 2021"]
[White "Rozen, Eytan"]
[Black "Tomb, Maroun"]
[WhiteFideId "2816750"]
[BlackFideId "5300398"]
[WhiteElo "1963"]
[BlackElo "2515"]
[Result "0-1"]
[Round "02"]
[TimeControl "180+1"]
[Date "2021.05.25"]
[WhiteClock "0:00:09"]
[BlackClock "0:00:15"]

1. e4 {[%clk 0:03:00]}  d5 {[%clk 0:02:57]} 2. Nc3 {[%clk 0:02:58]}  Nf6 {[%clk 0:02:53]} 3. e5 {[%clk 0:02:58]}  d4 {[%clk 0:02:53]} 4. exf6 {[%clk 0:02:57]}  dxc3 {[%clk 0:02:53]} 5. fxg7 {[%clk 0:02:53]}  cxd2+ {[%clk 0:02:54]} 6. Qxd2 {[%clk 0:02:52]}  Qxd2+ {[%clk 0:02:53]} 7. Bxd2 {[%clk 0:02:53]}  Bxg7 {[%clk 0:02:54]} 8. O-O-O {[%clk 0:02:54]}  Be6 {[%clk 0:02:54]} 9. a3 {[%clk 0:02:28]}  Nc6 {[%clk 0:02:47]} 10. Nf3 {[%clk 0:02:27]}  O-O-O {[%clk 0:02:47]} 11. Ng5 {[%clk 0:02:25]}  Rd6 {[%clk 0:01:55]} 12. Nxe6 {[%clk 0:02:23]}  Rxe6 {[%clk 0:01:51]} 13. Bc4 {[%clk 0:02:23]}  Rg6 {[%clk 0:01:48]} 14. g3 {[%clk 0:02:00]}  Ne5 {[%clk 0:01:41]} 15. Be2 {[%clk 0:01:59]}  h5 {[%clk 0:01:36]} 16. h3 {[%clk 0:01:49]}  h4 {[%clk 0:01:27]} 17. f4 {[%clk 0:01:49]}  Nc6 {[%clk 0:01:21]} 18. f5 {[%clk 0:01:10]}  Rxg3 {[%clk 0:01:15]} 19. Bg4 {[%clk 0:01:10]}  f6 {[%clk 0:00:52]} 20. Kb1 {[%clk 0:00:55]}  Bh6 {[%clk 0:00:51]} 21. Be1 {[%clk 0:00:51]}  Ne5 {[%clk 0:00:51]} 22. Bxg3 {[%clk 0:00:51]}  hxg3 {[%clk 0:00:51]} 23. Rdg1 {[%clk 0:00:39]}  Bf4 {[%clk 0:00:46]} 24. Be2 {[%clk 0:00:39]}  Nf7 {[%clk 0:00:39]} 25. h4 {[%clk 0:00:36]}  Nh6 {[%clk 0:00:35]} 26. h5 {[%clk 0:00:34]}  Rg8 {[%clk 0:00:34]} 27. Rh4 {[%clk 0:00:33]}  Be5 {[%clk 0:00:34]} 28. c3 {[%clk 0:00:31]}  Rg5 {[%clk 0:00:34]} 29. Kc2 {[%clk 0:00:30]}  c6 {[%clk 0:00:34]} 30. Kd3 {[%clk 0:00:30]}  Kc7 {[%clk 0:00:34]} 31. Ke4 {[%clk 0:00:30]}  Nxf5 {[%clk 0:00:33]} 32. Rh3 {[%clk 0:00:21]}  Nh6 {[%clk 0:00:28]} 33. Bf3 {[%clk 0:00:21]}  a6 {[%clk 0:00:27]} 34. a4 {[%clk 0:00:20]}  e6 {[%clk 0:00:27]} 35. Rg2 {[%clk 0:00:20]}  Kd6 {[%clk 0:00:27]} 36. Rh1 {[%clk 0:00:21]}  f5+ {[%clk 0:00:27]} 37. Ke3 {[%clk 0:00:21]}  Ke7 {[%clk 0:00:20]} 38. Rd1 {[%clk 0:00:20]}  Bd6 {[%clk 0:00:20]} 39. Rd4 {[%clk 0:00:19]}  Bc5 {[%clk 0:00:20]} 40. Kf4 {[%clk 0:00:19]}  Nf7 {[%clk 0:00:19]} 41. Rxg3 {[%clk 0:00:08]}  e5+ {[%clk 0:00:17]} 42. Ke3 {[%clk 0:00:08]}  Bxd4+ {[%clk 0:00:16]} 43. cxd4 {[%clk 0:00:08]}  f4+ {[%clk 0:00:17]} 44. Ke4 {[%clk 0:00:08]}  fxg3 {[%clk 0:00:15]} 45. dxe5 {[%clk 0:00:08]}  g2 {[%clk 0:00:15]} 46. Kf4 {[%clk 0:00:09]}  g1=Q {[%clk 0:00:15]} 0-1


[Site "https://www.chess.com"]

[Event "Titled Tuesday Blitz May 25 2021"]
[White "Samadov, Read"]
[Black "Janaszak, Dawid"]
[WhiteFideId "13417444"]
[BlackFideId "1119206"]
[WhiteElo "2084"]
[BlackElo "2332"]
[Result "1-0"]
[Round "02"]
[TimeControl "180+1"]
[Date "2021.05.25"]
[WhiteClock "0:01:05"]
[BlackClock "0:01:04"]

1. d4 {[%clk 0:03:00]}  c6 {[%clk 0:02:59]} 2. c4 {[%clk 0:02:59]}  d5 {[%clk 0:03:00]} 3. cxd5 {[%clk 0:02:59]}  cxd5 {[%clk 0:03:01]} 4. Nc3 {[%clk 0:02:59]}  Nc6 {[%clk 0:03:01]} 5. Bf4 {[%clk 0:02:58]}  Nf6 {[%clk 0:03:00]} 6. Nf3 {[%clk 0:02:57]}  a6 {[%clk 0:03:01]} 7. e3 {[%clk 0:02:57]}  Bf5 {[%clk 0:02:59]} 8. Qb3 {[%clk 0:02:56]}  Ra7 {[%clk 0:02:55]} 9. Ne5 {[%clk 0:02:52]}  e6 {[%clk 0:02:47]} 10. Be2 {[%clk 0:02:24]}  Be7 {[%clk 0:02:46]} 11. g4 {[%clk 0:02:18]}  Bg6 {[%clk 0:02:35]} 12. h4 {[%clk 0:02:08]}  Na5 {[%clk 0:01:50]} 13. Qd1 {[%clk 0:01:48]}  h6 {[%clk 0:01:47]} 14. Nxg6 {[%clk 0:01:46]}  fxg6 {[%clk 0:01:48]} 15. Qc2 {[%clk 0:01:43]}  O-O {[%clk 0:01:47]} 16. Qxg6 {[%clk 0:01:42]}  Qe8 {[%clk 0:01:45]} 17. Qxe8 {[%clk 0:01:38]}  Nxe8 {[%clk 0:01:41]} 18. g5 {[%clk 0:01:35]}  hxg5 {[%clk 0:01:36]} 19. hxg5 {[%clk 0:01:35]}  Nd6 {[%clk 0:01:36]} 20. Bg4 {[%clk 0:01:31]}  Nf5 {[%clk 0:01:32]} 21. Ke2 {[%clk 0:01:28]}  g6 {[%clk 0:01:28]} 22. Rh3 {[%clk 0:01:20]}  Kf7 {[%clk 0:01:27]} 23. Rah1 {[%clk 0:01:17]}  b5 {[%clk 0:01:27]} 24. Rh7+ {[%clk 0:01:15]}  Ke8 {[%clk 0:01:27]} 25. Rh8 {[%clk 0:01:15]}  Nc4 {[%clk 0:01:21]} 26. Rxf8+ {[%clk 0:01:14]}  Bxf8 {[%clk 0:01:20]} 27. b3 {[%clk 0:01:13]}  Na3 {[%clk 0:01:14]} 28. Rh8 {[%clk 0:01:06]}  b4 {[%clk 0:01:06]} 29. Bxf5 {[%clk 0:01:05]}  gxf5 {[%clk 0:01:04]} 30. Bd6 {[%clk 0:01:05]} 1-0


[Site "https://www.chess.com"]

[Event "Titled Tuesday Blitz May 25 2021"]
[White "Sarana, Alexey"]
[Black "korbul"]
[WhiteFideId "24133795"]
[WhiteElo "2629"]
[BlackElo "2582"]
[Result "1-0"]
[Round "02"]
[TimeControl "180+1"]
[Date "2021.05.25"]
[WhiteClock "0:01:10"]
[BlackClock "0:00:45"]

1. e4 {[%clk 0:03:00]}  c5 {[%clk 0:02:59]} 2. Nf3 {[%clk 0:03:01]}  e6 {[%clk 0:02:59]} 3. Nc3 {[%clk 0:02:59]}  a6 {[%clk 0:02:59]} 4. g3 {[%clk 0:02:58]}  b6 {[%clk 0:02:56]} 5. Bg2 {[%clk 0:02:57]}  Bb7 {[%clk 0:02:56]} 6. O-O {[%clk 0:02:58]}  Qc7 {[%clk 0:02:56]} 7. a4 {[%clk 0:02:58]}  Nc6 {[%clk 0:02:55]} 8. Re1 {[%clk 0:02:56]}  Nf6 {[%clk 0:02:47]} 9. e5 {[%clk 0:02:53]}  Ng4 {[%clk 0:02:34]} 10. d4 {[%clk 0:02:42]}  cxd4 {[%clk 0:02:33]} 11. Nxd4 {[%clk 0:02:42]}  Nxd4 {[%clk 0:02:26]} 12. Qxd4 {[%clk 0:02:23]}  h5 {[%clk 0:02:24]} 13. Ne4 {[%clk 0:01:49]}  Rc8 {[%clk 0:02:06]} 14. Re2 {[%clk 0:01:43]}  Be7 {[%clk 0:01:34]} 15. Nd6+ {[%clk 0:01:26]}  Bxd6 {[%clk 0:01:33]} 16. exd6 {[%clk 0:01:27]}  Qb8 {[%clk 0:01:27]} 17. Qxg7 {[%clk 0:01:25]}  Rf8 {[%clk 0:01:23]} 18. h3 {[%clk 0:01:18]}  Bxg2 {[%clk 0:01:22]} 19. Kxg2 {[%clk 0:01:15]}  Qb7+ {[%clk 0:01:16]} 20. f3 {[%clk 0:01:15]}  Nh2 {[%clk 0:00:57]} 21. Qf6 {[%clk 0:01:11]}  Qxf3+ {[%clk 0:00:47]} 22. Qxf3 {[%clk 0:01:11]}  Nxf3 {[%clk 0:00:48]} 23. Kxf3 {[%clk 0:01:12]}  Rc6 {[%clk 0:00:46]} 24. Be3 {[%clk 0:01:10]}  Rxd6 {[%clk 0:00:45]} 25. a5 {[%clk 0:01:10]} 1-0


[Site "https://www.chess.com"]

[Event "Titled Tuesday Blitz May 25 2021"]
[White "Senthil Maran K"]
[Black "Kazakouski, Valery"]
[WhiteFideId "25035681"]
[BlackFideId "13507443"]
[WhiteElo "2194"]
[BlackElo "2546"]
[Result "0-1"]
[Round "02"]
[TimeControl "180+1"]
[Date "2021.05.25"]
[WhiteClock "0:00:01"]
[BlackClock "0:00:28"]

1. d4 {[%clk 0:03:00]}  Nf6 {[%clk 0:02:59]} 2. c4 {[%clk 0:03:00]}  e6 {[%clk 0:02:59]} 3. g3 {[%clk 0:03:00]}  d5 {[%clk 0:02:59]} 4. Bg2 {[%clk 0:03:01]}  dxc4 {[%clk 0:03:00]} 5. Nf3 {[%clk 0:03:01]}  Bd7 {[%clk 0:03:00]} 6. Ne5 {[%clk 0:03:01]}  Bc6 {[%clk 0:03:01]} 7. Nxc6 {[%clk 0:03:01]}  Nxc6 {[%clk 0:03:02]} 8. O-O {[%clk 0:03:01]}  Qd7 {[%clk 0:03:02]} 9. e3 {[%clk 0:02:58]}  Rd8 {[%clk 0:03:02]} 10. Qe2 {[%clk 0:02:58]}  e5 {[%clk 0:03:02]} 11. Qxc4 {[%clk 0:02:57]}  exd4 {[%clk 0:03:02]} 12. exd4 {[%clk 0:02:57]}  Nxd4 {[%clk 0:03:00]} 13. Be3 {[%clk 0:01:51]}  c5 {[%clk 0:02:28]} 14. Nc3 {[%clk 0:00:55]}  b5 {[%clk 0:02:18]} 15. Nxb5 {[%clk 0:00:55]}  Nxb5 {[%clk 0:02:17]} 16. Rad1 {[%clk 0:00:47]}  Nd6 {[%clk 0:02:02]} 17. Qxc5 {[%clk 0:00:19]}  Rc8 {[%clk 0:02:02]} 18. Qd4 {[%clk 0:00:13]}  Be7 {[%clk 0:01:55]} 19. Bf4 {[%clk 0:00:13]}  Rd8 {[%clk 0:01:53]} 20. Rfe1 {[%clk 0:00:09]}  O-O {[%clk 0:01:51]} 21. Qb4 {[%clk 0:00:01]}  a5 {[%clk 0:01:38]} 22. Qxa5 {[%clk 0:00:01]}  Rfe8 {[%clk 0:01:32]} 23. Qb4 {[%clk 0:00:01]}  Bf8 {[%clk 0:01:28]} 24. Qa3 {[%clk 0:00:01]}  Rxe1+ {[%clk 0:01:26]} 25. Rxe1 {[%clk 0:00:02]}  Nc4 {[%clk 0:01:22]} 26. Qc3 {[%clk 0:00:02]}  Qb5 {[%clk 0:01:17]} 27. b3 {[%clk 0:00:02]}  Bb4 {[%clk 0:01:08]} 28. bxc4 {[%clk 0:00:02]}  Bxc3 {[%clk 0:01:08]} 29. cxb5 {[%clk 0:00:02]}  Bxe1 {[%clk 0:01:08]} 30. b6 {[%clk 0:00:02]}  Nd7 {[%clk 0:01:02]} 31. b7 {[%clk 0:00:02]}  Ba5 {[%clk 0:01:01]} 32. Bc6 {[%clk 0:00:02]}  Nb8 {[%clk 0:01:00]} 33. Bb5 {[%clk 0:00:02]}  f6 {[%clk 0:00:51]} 34. g4 {[%clk 0:00:01]}  Bb6 {[%clk 0:00:33]} 35. Kg2 {[%clk 0:00:02]}  Ba7 {[%clk 0:00:32]} 36. h4 {[%clk 0:00:02]}  Kf7 {[%clk 0:00:32]} 37. h5 {[%clk 0:00:02]}  Ke7 {[%clk 0:00:31]} 38. Kf3 {[%clk 0:00:02]}  Rd5 {[%clk 0:00:30]} 39. Bc4 {[%clk 0:00:02]}  Ra5 {[%clk 0:00:29]} 40. Bb3 {[%clk 0:00:01]}  Rb5 {[%clk 0:00:28]} 0-1


[Site "https://www.chess.com"]

[Event "Titled Tuesday Blitz May 25 2021"]
[White "Seul, Georg"]
[Black "Starozhilov, Leonid"]
[WhiteFideId "4601653"]
[BlackFideId "14106752"]
[WhiteElo "2332"]
[BlackElo "2411"]
[Result "1-0"]
[Round "02"]
[TimeControl "180+1"]
[Date "2021.05.25"]
[WhiteClock "0:00:38"]
[BlackClock "0:00:19"]

1. e4 {[%clk 0:03:00]}  g6 {[%clk 0:02:59]} 2. d4 {[%clk 0:03:00]}  Bg7 {[%clk 0:03:00]} 3. Nf3 {[%clk 0:02:59]}  d6 {[%clk 0:03:00]} 4. Bd3 {[%clk 0:02:59]}  Bg4 {[%clk 0:02:59]} 5. c3 {[%clk 0:02:57]}  Nc6 {[%clk 0:02:59]} 6. Nbd2 {[%clk 0:02:53]}  e5 {[%clk 0:02:58]} 7. h3 {[%clk 0:02:47]}  Bd7 {[%clk 0:02:54]} 8. Nb3 {[%clk 0:02:32]}  Nf6 {[%clk 0:02:45]} 9. O-O {[%clk 0:02:31]}  O-O {[%clk 0:02:42]} 10. Re1 {[%clk 0:02:29]}  Nh5 {[%clk 0:02:41]} 11. Bg5 {[%clk 0:02:25]}  Bf6 {[%clk 0:02:37]} 12. Be3 {[%clk 0:02:24]}  b6 {[%clk 0:02:30]} 13. Nbd2 {[%clk 0:02:21]}  Bg7 {[%clk 0:02:25]} 14. Qc2 {[%clk 0:02:20]}  a5 {[%clk 0:02:20]} 15. Rad1 {[%clk 0:02:10]}  Qe7 {[%clk 0:02:16]} 16. Bf1 {[%clk 0:02:03]}  Rae8 {[%clk 0:02:01]} 17. g3 {[%clk 0:01:55]}  Kh8 {[%clk 0:01:59]} 18. Bg2 {[%clk 0:01:54]}  Nf6 {[%clk 0:01:58]} 19. a3 {[%clk 0:01:41]}  Bc8 {[%clk 0:01:55]} 20. b4 {[%clk 0:01:38]}  axb4 {[%clk 0:01:50]} 21. cxb4 {[%clk 0:01:34]}  exd4 {[%clk 0:01:45]} 22. Nxd4 {[%clk 0:01:34]}  Nxd4 {[%clk 0:01:42]} 23. Bxd4 {[%clk 0:01:34]}  c5 {[%clk 0:01:42]} 24. Bb2 {[%clk 0:01:30]}  Be6 {[%clk 0:01:26]} 25. Nc4 {[%clk 0:01:26]}  Bxc4 {[%clk 0:01:15]} 26. Qxc4 {[%clk 0:01:26]}  Nd7 {[%clk 0:01:13]} 27. Bxg7+ {[%clk 0:01:24]}  Kxg7 {[%clk 0:01:14]} 28. Qd3 {[%clk 0:01:19]}  Ne5 {[%clk 0:01:08]} 29. Qxd6 {[%clk 0:01:10]}  Qxd6 {[%clk 0:01:07]} 30. Rxd6 {[%clk 0:01:10]}  Nc4 {[%clk 0:01:07]} 31. Rd3 {[%clk 0:01:10]}  Ra8 {[%clk 0:00:57]} 32. bxc5 {[%clk 0:01:08]}  bxc5 {[%clk 0:00:56]} 33. Rc3 {[%clk 0:01:03]}  Ne5 {[%clk 0:00:47]} 34. f4 {[%clk 0:00:55]}  Nd7 {[%clk 0:00:48]} 35. e5 {[%clk 0:00:54]}  Ra5 {[%clk 0:00:46]} 36. e6 {[%clk 0:00:53]}  fxe6 {[%clk 0:00:45]} 37. Rxe6 {[%clk 0:00:53]}  Nf6 {[%clk 0:00:43]} 38. Rc6 {[%clk 0:00:49]}  Rb5 {[%clk 0:00:38]} 39. R6xc5 {[%clk 0:00:48]}  Rb2 {[%clk 0:00:37]} 40. Rc2 {[%clk 0:00:46]}  Rb3 {[%clk 0:00:35]} 41. R5c3 {[%clk 0:00:46]}  Rb1+ {[%clk 0:00:35]} 42. Kh2 {[%clk 0:00:45]}  Rd8 {[%clk 0:00:36]} 43. g4 {[%clk 0:00:41]}  Ra1 {[%clk 0:00:26]} 44. Rc7+ {[%clk 0:00:40]}  Kf8 {[%clk 0:00:26]} 45. Ra7 {[%clk 0:00:39]}  Ra2 {[%clk 0:00:19]} 46. Rxa2 {[%clk 0:00:38]} 1-0


[Site "https://www.chess.com"]

[Event "Titled Tuesday Blitz May 25 2021"]
[White "Shapkin, Anatoliy"]
[Black "Perez, Maximiliano"]
[WhiteFideId "34108332"]
[BlackFideId "117234"]
[WhiteElo "2223"]
[BlackElo "2368"]
[Result "1-0"]
[Round "02"]
[TimeControl "180+1"]
[Date "2021.05.25"]
[WhiteClock "0:01:39"]
[BlackClock "0:00:01"]

1. d4 {[%clk 0:03:00]}  Nf6 {[%clk 0:02:59]} 2. c4 {[%clk 0:03:01]}  g6 {[%clk 0:02:59]} 3. Nc3 {[%clk 0:03:01]}  Bg7 {[%clk 0:02:59]} 4. Nf3 {[%clk 0:03:02]}  O-O {[%clk 0:02:58]} 5. e4 {[%clk 0:03:02]}  d6 {[%clk 0:02:58]} 6. Be2 {[%clk 0:03:02]}  Na6 {[%clk 0:02:59]} 7. O-O {[%clk 0:03:03]}  e5 {[%clk 0:02:59]} 8. d5 {[%clk 0:03:03]}  Nc5 {[%clk 0:02:58]} 9. Qc2 {[%clk 0:03:03]}  a5 {[%clk 0:02:57]} 10. Bg5 {[%clk 0:03:04]}  h6 {[%clk 0:02:56]} 11. Be3 {[%clk 0:03:04]}  Nfd7 {[%clk 0:02:56]} 12. Nd2 {[%clk 0:03:04]}  f5 {[%clk 0:02:15]} 13. exf5 {[%clk 0:03:05]}  gxf5 {[%clk 0:02:15]} 14. f4 {[%clk 0:03:05]}  exf4 {[%clk 0:02:16]} 15. Bxf4 {[%clk 0:03:04]}  Ne5 {[%clk 0:02:16]} 16. Nb3 {[%clk 0:02:31]}  Nxb3 {[%clk 0:01:35]} 17. axb3 {[%clk 0:02:32]}  Bd7 {[%clk 0:01:30]} 18. Rae1 {[%clk 0:02:26]}  c6 {[%clk 0:01:25]} 19. dxc6 {[%clk 0:02:22]}  bxc6 {[%clk 0:01:20]} 20. Kh1 {[%clk 0:02:22]}  Qb6 {[%clk 0:01:04]} 21. Rd1 {[%clk 0:02:18]}  Qb8 {[%clk 0:00:35]} 22. Qd2 {[%clk 0:01:58]}  Qxb3 {[%clk 0:00:15]} 23. Qxd6 {[%clk 0:01:58]}  Rae8 {[%clk 0:00:15]} 24. Bxe5 {[%clk 0:01:44]}  Bxe5 {[%clk 0:00:16]} 25. Qxd7 {[%clk 0:01:45]}  Bxc3 {[%clk 0:00:16]} 26. Bh5 {[%clk 0:01:43]}  Rd8 {[%clk 0:00:04]} 27. Qe6+ {[%clk 0:01:42]}  Kh8 {[%clk 0:00:03]} 28. bxc3 {[%clk 0:01:40]}  Rxd1 {[%clk 0:00:02]} 29. Rxd1 {[%clk 0:01:40]}  Kg7 {[%clk 0:00:01]} 30. Qg6+ {[%clk 0:01:39]} 1-0


[Site "https://www.chess.com"]

[Event "Titled Tuesday Blitz May 25 2021"]
[White "Trimitzios, Petros"]
[Black "Grochal, Joey"]
[WhiteFideId "25808796"]
[BlackFideId "1019945"]
[WhiteElo "2049"]
[BlackElo "2265"]
[Result "1-0"]
[Round "02"]
[TimeControl "180+1"]
[Date "2021.05.25"]
[WhiteClock "0:00:33"]
[BlackClock "0:01:06"]

1. c4 {[%clk 0:03:00]}  e6 {[%clk 0:02:59]} 2. Nc3 {[%clk 0:02:58]}  d5 {[%clk 0:02:59]} 3. d4 {[%clk 0:02:56]}  Nf6 {[%clk 0:02:59]} 4. Bf4 {[%clk 0:02:55]}  Bb4 {[%clk 0:02:57]} 5. e3 {[%clk 0:02:53]}  O-O {[%clk 0:02:57]} 6. Bd3 {[%clk 0:02:49]}  dxc4 {[%clk 0:02:57]} 7. Bxc4 {[%clk 0:02:48]}  c5 {[%clk 0:02:57]} 8. Ne2 {[%clk 0:02:46]}  Nc6 {[%clk 0:02:57]} 9. a3 {[%clk 0:02:45]}  cxd4 {[%clk 0:02:57]} 10. axb4 {[%clk 0:02:43]}  dxc3 {[%clk 0:02:57]} 11. bxc3 {[%clk 0:02:44]}  Nd5 {[%clk 0:02:47]} 12. Bg3 {[%clk 0:02:41]}  Qf6 {[%clk 0:02:39]} 13. Qc1 {[%clk 0:02:27]}  b6 {[%clk 0:02:31]} 14. O-O {[%clk 0:02:23]}  Bb7 {[%clk 0:02:28]} 15. e4 {[%clk 0:01:55]}  Nde7 {[%clk 0:02:20]} 16. Qe3 {[%clk 0:01:51]}  Ne5 {[%clk 0:02:16]} 17. Bb3 {[%clk 0:01:46]}  Rfd8 {[%clk 0:02:11]} 18. Nd4 {[%clk 0:01:41]}  N5c6 {[%clk 0:01:50]} 19. Nb5 {[%clk 0:01:25]}  Ng6 {[%clk 0:01:36]} 20. Nd6 {[%clk 0:01:05]}  Bc8 {[%clk 0:01:27]} 21. Nxc8 {[%clk 0:01:01]}  Raxc8 {[%clk 0:01:26]} 22. f4 {[%clk 0:00:54]}  e5 {[%clk 0:01:19]} 23. fxe5 {[%clk 0:00:50]}  Qe7 {[%clk 0:01:14]} 24. Rxf7 {[%clk 0:00:49]}  Qxf7 {[%clk 0:01:14]} 25. Bxf7+ {[%clk 0:00:49]}  Kxf7 {[%clk 0:01:15]} 26. e6+ {[%clk 0:00:46]}  Kxe6 {[%clk 0:01:15]} 27. Rf1 {[%clk 0:00:42]}  Nce5 {[%clk 0:01:11]} 28. Qg5 {[%clk 0:00:37]}  Rd7 {[%clk 0:01:06]} 29. Qf5+ {[%clk 0:00:33]} 1-0


[Site "https://www.chess.com"]